{"text_format":"1","workbook":"xlsx","n_sheets":2,"sheets":["Normal oversigt","Beregninger"],"not_rendered":{"charts":0,"images":1,"macros":1,"external_links":0,"defined_names":1,"comments":2,"pivot_tables":0},"unopened":[],"bounds":{"document_bytes":16777216,"sheet_cells":100000,"rows_first":2000,"rows_last":500,"rows_between":2000,"halvings":0,"cell_chars":16384,"cell_head_chars":4096},"cells_cut":0,"cells_raw":0,"read":"whole","date_system":"1900"}

{"sheet":"Normal oversigt","index":0,"n_rows":94,"n_cols":8,"rows_kept":94,"cut":false,"hidden":false,"merged":[[21,0,21,3],[21,4,21,5],[21,6,21,7],[22,0,22,3],[22,4,22,5],[22,6,22,7],[20,0,20,3],[20,4,20,5],[20,6,20,7],[18,4,18,5],[18,6,18,7],[19,0,19,3],[19,4,19,5],[19,6,19,7],[23,4,23,5],[23,6,23,7],[24,0,24,3],[24,4,24,5],[24,6,24,7],[23,0,23,3],[25,0,25,3],[25,4,25,5],[25,6,25,7],[26,0,26,3],[26,4,26,5],[26,6,26,7],[27,0,27,3],[27,4,27,5],[27,6,27,7],[28,0,28,3],[28,4,28,5],[28,6,28,7],[36,5,36,7],[44,5,44,7],[45,5,45,7],[43,0,43,4],[29,2,29,3],[29,4,29,5],[29,6,29,7],[30,2,30,5],[30,6,30,7],[31,0,31,4],[32,0,32,4],[33,0,33,4],[34,0,34,4],[35,5,35,7],[35,0,35,4],[31,5,31,7],[32,5,32,7],[33,5,33,7],[34,5,34,7],[58,0,58,4],[59,0,59,4],[49,0,49,4],[50,0,50,4],[51,0,51,4],[56,0,56,4],[57,0,57,4],[48,0,48,4],[40,0,40,4],[41,0,41,4],[42,0,42,4],[39,0,39,4],[65,5,65,7],[60,5,60,7],[61,5,61,7],[62,5,62,7],[39,5,39,7],[40,5,40,7],[41,5,41,7],[42,5,42,7],[43,5,43,7],[54,5,54,7],[53,5,53,7],[37,5,37,7],[38,5,38,7],[59,5,59,7],[49,5,49,7],[50,5,50,7],[46,5,46,7],[51,5,51,7],[55,5,55,7],[56,5,56,7],[57,5,57,7],[58,5,58,7],[52,5,52,7],[47,5,47,7],[48,5,48,7]]}
[]
[]
[]
[]
[]
[]
["Elev type:"]
["Feriepenge",0.125,null,null,"Søgnehelligdagsbet.",null,0.09]
["Løn",{"$f":"37*144.2","v":5335.4},"Kr/uge",null,"Fritvalgskonto",null,0.02]
[]
["Forsikring per elev",4600,"kr/år",null,"Bogpakke 1. skoleoph.",null,1500,"kr."]
["Befordringsgodtgørelse",100,"kr/uge*",null,"Antal uger praktik",null,{"$f":"IF(Beregninger!C41=8,0,Beregninger!C41)","v":122},"Uger"]
["Udgifter Skolehjem",500,"kr/uge",null,"Antal uger skole",null,{"$f":"Beregninger!C36","v":34},"Uger"]
["Refusion Skolehjem",500,"kr/uge",null,"Pension",null,0.08]
["Løntilskud (over 25 år)",{"$f":"Beregninger!C43","v":30},"kr/time**",null,"Refusion i skole per.",null,5100,"kr/uge"]
[]
[]
[]
[null,null,null,null,"Refusion/tilskud",null,"Udgifter"]
["Lønudgift praktik og skole periode",null,null,null,null,null,{"$f":"(Beregninger!C41+Beregninger!C36)*Beregninger!C42","v":16224}]
["Ferietillæg",null,null,null,null,null,{"$f":"G20*B8","v":2028}]
["Pension",null,null,null,null,null,{"$f":"G20*Beregninger!C43","v":486720}]
["Refusion for skole periode",null,null,null,{"$f":"Beregninger!C36*Beregninger!C37","v":1360}]
["Forsikring",null,null,null,null,null,{"$f":"B11","v":4600}]
["Udgifter skolehjem",null,null,null,null,null,{"$f":"Beregninger!C36*B13","v":17000}]
["Refusion skolehjem",null,null,null,{"$f":"Beregninger!C36*B14","v":17000}]
["Løntilskud for vokse over 25 år EUV 2 og 3 elever",null,null,null,{"$f":"B15*Beregninger!C41*37","v":135420}]
["Befordringsgodtgørelse",null,null,null,null,null,{"$f":"B12*Beregninger!C36","v":3400}]
["Bogpakke",null,null,null,null,null,{"$f":"VLOOKUP(Beregninger!B3,Beregninger!A5:J28,12, FALSE)","v":{"$error":"#REF!"}}]
[null,null,"I alt kr.:",null,{"$f":"SUM(E20:F29)","v":153780},null,{"$f":"SUM(G20:H29)","v":{"$error":"#REF!"}}]
[null,null,"Periodens udgift",null,null,null,{"$f":"G30-E30","v":{"$error":"#REF!"}}]
["Bruttoudgift 1. år",null,null,null,null,{"$f":"((Beregninger!G32*(1+G8+G9+B8)))*(1+G14)+(((Beregninger!G32*G8)*B8)*G14)+B11+(B12*Beregninger!C32)+G11","v":320630.96872}]
["Tilskud 1. år",null,null,null,null,{"$f":"(G15*Beregninger!C32)+((Beregninger!D37-8)*37)*B15","v":96720}]
["Nettoudgift 1. år",null,null,null,null,{"$f":"F32-F33","v":223910.96872}]
["Total udgift i skoletid minus refusion",null,null,null,null,{"$f":"(((G20+G21+G22)/(Beregninger!C41+Beregninger!C36))*Beregninger!C36)-E23+G28+G29","v":{"$error":"#REF!"}}]
["Gns. per måned 1. år",null,null,null,null,{"$f":"F34/12","v":18659.247393333335}]
["Gns. per time 1. år",null,null,null,null,{"$f":"F36/160.33","v":116.3802619181272}]
["Gns. udgift per måned fordelt på praktikperiode alt incl.",null,null,null,null,{"$f":"(F34/(Beregninger!C37-8))*4.33","v":30297.952954925}]
["Gns. udgift per time fordelt på praktikperiode alt incl.",null,null,null,null,{"$f":"F38/160.33","v":188.97245028955902}]
[]
["Bruttoudgift 2. år",null,null,null,null,{"$f":"IF(((Beregninger!G33*(1+G8+G9+B8)))*(1+G14)+(((Beregninger!G33*G8)*B8)*G14)+B11+(B12*Beregninger!C33)<0,0,((Beregninger!G33*(1+G8+G9+B8)))*(1+G14)+(((Beregninger!G33*G8)*B8)*G14)+B11+(B12*Beregninger!C33))","v":319130.96872}]
["Tilskud 2. år",null,null,null,null,{"$f":"(G15*Beregninger!C33)+((Beregninger!D38-8)*37)*B15","v":96720}]
["Nettoudgift 2. år",null,null,null,null,{"$f":"F41-F42","v":222410.96872}]
["Gns. per måned 2. år",null,null,null,null,{"$f":"F43/12","v":18534.247393333335}]
["Gns. per time 2. år",null,null,null,null,{"$f":"F44/160.33","v":115.60061992972827}]
["Gns. udgift per måned fordelt på praktikperiode alt incl.",null,null,null,null,{"$f":"(F43/(Beregninger!C38-8))*4.33","v":30094.984204925}]
["Gns. udgift per time fordelt på praktikperiode alt incl.",null,null,null,null,{"$f":"F46/160.33","v":187.70650661089627}]
[]
["Bruttoudgift 3. år",null,null,null,null,{"$f":"IF(((Beregninger!G34*(1+G8+G9+B8)))*(1+G14)+(((Beregninger!G34*G8)*B8)*G14)+B11+(B12*Beregninger!C34)<0,0,((Beregninger!G34*(1+G8+G9+B8)))*(1+G14)+(((Beregninger!G34*G8)*B8)*G14)+B11+(B12*Beregninger!C34))","v":318930.96872}]
["Tilskud 3. år",null,null,null,null,{"$f":"(G15*Beregninger!C34)+((Beregninger!D39-8)*37)*B15","v":68760}]
["Nettoudgift 3. år",null,null,null,null,{"$f":"F49-F50","v":250170.96872}]
["Gns. per måned 3. år",null,null,null,null,{"$f":"F51/12","v":20847.580726666667}]
["Gns. per time 3. år",null,null,null,null,{"$f":"F52/160.33","v":130.02919432836441}]
["Gns. udgift per måned fordelt på praktikperiode alt incl.",null,null,null,null,{"$f":"(F51/(Beregninger!C39-8))*4.33","v":31860.008663458826}]
["Gns. udgift per time fordelt på praktikperiode alt incl.",null,null,null,null,{"$f":"F54/160.33","v":198.71520403828868}]
[]
["Bruttoudgift 4. år",null,null,null,null,{"$f":"IF(((Beregninger!G35*(1+G8+G9+B8)))*(1+G14)+(((Beregninger!G35*G8)*B8)*G14)+B11+(B12*Beregninger!C35)<=0,0,((Beregninger!G35*(1+G8+G9+B8)))*(1+G14)+(((Beregninger!G35*G8)*B8)*G14)+B11+(B12*Beregninger!C35))","v":0}]
["Tilskud 4. år",null,null,null,null,{"$f":"IF((G15*Beregninger!C35)+((Beregninger!D40-8)*37)*B15<=0,0,(G15*Beregninger!C35)+((Beregninger!D40-8)*37)*B15)","v":0}]
["Nettoudgift 4. år",null,null,null,null,{"$f":"F57-F58","v":0}]
["Gns. per måned 4. år OBS kun 6 mnd.",null,null,null,null,{"$f":"F59/6","v":0}]
["Gns. per time 4. år",null,null,null,null,{"$f":"F60/160.33","v":0}]
["Gns. udgift per måned fordelt på praktikperiode alt incl.",null,null,null,null,{"$f":"(F59/(Beregninger!C40-4))*4.33","v":0}]
["Gns. udgift per time fordelt på praktikperiode alt incl.",null,null,null,null,{"$f":"F62/160.33","v":0}]
[]
[]
["Gennemsnitspris per time arbejde",null,null,null,null,{"$f":"((F34+F43+F51+F59)/(G12-IF(F59>0,28,24)))/37","v":192.08298570325428}]
["Forudsætninger:"]
["*Befordringsgodtgørelse 80% af billigste offentlig transport refunderet estimat."]
["AUB refusion er beregnet med 2018 tal for alle år."]
["Ugeløn og pension under skole og praktik ophold er beregnet for hele året selvom dette reguleres pr. 1. marts"]
["Krav til forsikring iht overenskomst."]
["EUV - ErhvervsUddannelse for Voksne. "]
["**Voksne der er fyldt 25 år, og indgår under reglerne for voksne, der tager en erhvervsuddannelse. "]
["Der er ikke beregnet tilskud ved ferie og søgnehelligdage. Har virksomheden udgifter til ferie er der tilskud til ferie."]
["Løntilskud forklaring:","30 eller 40 kr med anden baggrund i hele praktik perioden"]
[null,"30 kr i op til de første 2 år af praktik perioden"]
["Ny mesterlære: Eleven er det første uddannelsesår i praktik."]
["Skurpenge:"]
["Hvis forsvarligt skur- eller opholdsrum ikke anvises, ydes et dagligt beløb på 50,55 kr."]
["regnet fra den lønningsuge hvor kravet stilles."]
["Pr. 1. marts 2018 udgør satsen 53,02 kr. og pr. 1. marts 2019 er satsen 53,02 kr."]
["Pensionsbidraget er beregnet af den samlede ferieberettigede løn, søgnehelligdags- og fridagsbetaling, "]
["fritvalgsopsparing samt feriepenge."]
["Der er beregnet pension og ferie af søgnehelligdags- og fridagsbetaling."]
["Gns. udgift per måned fordelt på praktikperiode alt incl. Det vil sige per år er fratrukkekt 6 ugers ferie og 2 ugers"]
["søgenhelligdage og fridage."]
["Evt. udgift til studietur 3000 kr."]
["For elever der ikke er i ny mesterlære, er det forudsat at grundforløbet er gennemført,"]
["inden der indgås uddannelsesaftale"]
["OBS  Hvis din voksenelev gennemfører sin erhvervsuddannelse uden forudgående grundforløb og praktik, "]
["har du ført ret til lønrefusion, når eleven har været beskæftiget i virksomheden i tre sammenhængende måneder."]
["Er eleven ansat på deltid, skal den forudgående beskæftigelse svare til tre måneders fuldtidsbeskæftigelse, "]
["før du kan få udbetalt lønrefusion."]
["Timelønssatsen er sat til 144,20 kr."]

{"sheet":"Beregninger","index":1,"n_rows":45,"n_cols":12,"rows_kept":45,"cut":false,"hidden":false,"merged":[]}
[]
[]
[null,3]
[null,"Elev type","Varighed skole år 1 (uger)","Varighed skole år 2 (uger)","Varighed skole år 3 (uger)","Varighed skole år 4 (uger)","Varighed praktik år 1 (uger)","Varighed praktik år 2 (uger)","Varighed praktik år 3 (uger)","Varighed praktik år 4 (uger)","Løntilskud praktik","løntilskud (uger)"]
[1,"EUV 1 Mindst 2 års Erhvervs erfaring",32,0,0,0,8,0,0,0,0,0]
[2,"EUV 2 Mindre end 2 års relevant erhvervserfaring eller anden fuldført uddannelse - ingen tilskud",12,12,10,0,40,40,42,0,0,122]
[3,"EUV 2 Mindre end 2 års relevant erhvervserfaring eller anden fuldført uddannelse - 30 kr i 2 år praktik",12,12,10,0,40,40,42,0,30,104]
[4,"EUV 2 Mindre end 2 års relevant erhvervserfaring eller anden fuldført uddannelse - 30 kr hele praktikperiode",12,12,10,0,40,40,42,0,30,122]
[5,"EUV 2 Mindre end 2 års relevant erhvervserfaring eller anden fuldført uddannelse - 40 kr hele praktikperiode",12,12,10,0,40,40,42,0,40,122]
[6,"EUV 3 Ingen relevant erhvervserfaring eller anden fuldført uddannelse - ingen tilskud",12,12,12,0,40,40,40,0,0,120]
[7,"EUV 3 Ingen relevant erhvervserfaring eller anden fuldført uddannelse - 30 kr i 2 år praktik",12,12,12,0,40,40,40,0,30,104]
[8,"EUV 3 Ingen relevant erhvervserfaring eller anden fuldført uddannelse - 30 kr hele praktikperiode",12,12,12,0,40,40,40,0,30,120]
[9,"EUV 3 Ingen relevant erhvervserfaring eller anden fuldført uddannelse - 40 kr hele praktikperiode",12,12,12,0,40,40,40,0,40,120]
[10,"EUV 2 Ny mesterlære Mindre end 2 års relevant erhvervserfaring eller anden fuldført uddannelse - ingen tilskud",4,12,12,10,48,40,40,16,0,144]
[11,"EUV 2 Ny mesterlære Mindre end 2 års relevant erhvervserfaring eller anden fuldført uddannelse - 30 kr i 2 år praktik",4,12,12,10,48,40,40,16,30,104]
[12,"EUV 2 Ny mesterlære Mindre end 2 års relevant erhvervserfaring eller anden fuldført uddannelse - 30 kr hele praktikperiode",4,12,12,10,48,40,40,16,30,144]
[13,"EUV 2 Ny mesterlære Mindre end 2 års relevant erhvervserfaring eller anden fuldført uddannelse - 40 kr hele praktikperiode",4,12,12,10,48,40,40,16,40,144]
[14,"EUV 3 Ny mesterlære Ingen relevant erhvervserfaring eller anden fuldført uddannelse - ingen tilskud",4,12,12,12,48,40,40,18,0,146]
[15,"EUV 3 Ny mesterlære Ingen relevant erhvervserfaring eller anden fuldført uddannelse - 30 kr i 2 år praktik",4,12,12,12,48,40,40,18,30,104]
[16,"EUV 3 Ny mesterlære Ingen relevant erhvervserfaring eller anden fuldført uddannelse - 30 kr hele praktikperiode",4,12,12,12,48,40,40,18,30,146]
[17,"EUV 3 Ny mesterlære Ingen relevant erhvervserfaring eller anden fuldført uddannelse - 40 kr hele praktikperiode",4,12,12,12,48,40,40,18,40,146]
[18]
[19]
[20]
[21]
[22]
[23]
[24]
[25]
[]
[null,null,null,"uger med tilskud",null,null,"Råløn"]
[null,"1. år skole",{"$f":"VLOOKUP(Beregninger!B3,Beregninger!A5:L29,3, FALSE)","v":12},null,null,"1. år",{"$f":"(C32+C37-8)*'Normal oversigt'!B9","v":234757.59999999998}]
[null,"2. år skole",{"$f":"VLOOKUP(Beregninger!B3,Beregninger!A5:L29,4, FALSE)","v":12},null,null,"2. år",{"$f":"(C33+C38-8)*'Normal oversigt'!B9","v":234757.59999999998}]
[null,"3. år skole",{"$f":"VLOOKUP(Beregninger!B3,Beregninger!A5:L29,5, FALSE)","v":10},null,null,"3. år",{"$f":"(C34+C39-8)*'Normal oversigt'!B9","v":234757.59999999998}]
[null,"4. år skole",{"$f":"VLOOKUP(Beregninger!B3,Beregninger!A5:L29,6, FALSE)","v":0},null,null,"4. år",{"$f":"(C35+C40-4)*'Normal oversigt'!B9","v":-21341.599999999999}]
[null,"Valgt varighed skole",{"$f":"(VLOOKUP(Beregninger!B3,Beregninger!A5:J29,3, FALSE)+VLOOKUP(Beregninger!B3,Beregninger!A5:J29,4, FALSE)+VLOOKUP(Beregninger!B3,Beregninger!A5:J29,5, FALSE)+VLOOKUP(Beregninger!B3,Beregninger!A5:J29,6, FALSE))","v":34}]
[null,"1. år praktik",{"$f":"VLOOKUP(Beregninger!B3,Beregninger!A5:L29,7, FALSE)","v":40},{"$f":"IF(C42-C37>=0,C37,C37-((C37)-(C42)))","v":40}]
[null,"2. år praktik",{"$f":"VLOOKUP(Beregninger!B3,Beregninger!A5:L29,8, FALSE)","v":40},{"$f":"IF(C42-(C37+C38)>=0,C38,C38-((C37+C38)-(C42)))","v":40}]
[null,"3. år praktik",{"$f":"VLOOKUP(Beregninger!B3,Beregninger!A5:L29,9, FALSE)","v":42},{"$f":"IF(C42-(C37+C38+C39)>=0,C39,C39-((C37+C38+C39)-(C42)))","v":24}]
[null,"4. år praktik",{"$f":"VLOOKUP(Beregninger!B3,Beregninger!A5:L29,10, FALSE)","v":0},{"$f":"IF(C42-(C37+C38+C39+C40)>=0,C40,C40-((C37+C38+C39+C40)-(C42)))","v":-18}]
[null,"Valgt varighed praktik",{"$f":"(VLOOKUP(Beregninger!B3,Beregninger!A5:J29,7, FALSE)+VLOOKUP(Beregninger!B3,Beregninger!A5:J29,8, FALSE)+VLOOKUP(Beregninger!B3,Beregninger!A5:J29,9, FALSE)+VLOOKUP(Beregninger!B3,Beregninger!A5:J29,10, FALSE))","v":122}]
[null,"Varighed løntilskud",{"$f":"VLOOKUP(Beregninger!B3,Beregninger!A5:L29,12, FALSE)","v":104}]
[null,"Løntilskud beløb",{"$f":"VLOOKUP(Beregninger!B3,Beregninger!A5:L29,11, FALSE)","v":30}]
[]
[null," "]